[Event "Polofinale MCR junioru 2023"]
[Site "Czech Republic"]
[Date "2023.11.14"]
[Round "5.5"]
[White "Lang, Simon"]
[Black "Winter, Ondrej"]
[Result "1-0"]
[TimeControl "90 min per 40 moves + 15 min + 30 sec / move from move 1"]
[WhiteFideId "23712449"]
[BlackFideId "23702192"]
[WhiteElo "2090"]
[BlackElo "2163"]

1. e4 {[%clk 01:30:39]} {[%emt 00:00:20]} d6 {[%clk 01:30:40]} {[%emt
00:00:21]} 2. d4 {[%clk 01:30:31]} {[%emt 00:00:38]} Nf6 {[%clk 01:31:04]}
{[%emt 00:00:05]} 3. Nc3 {[%clk 01:30:45]} {[%emt 00:00:16]} g6 {[%clk
01:31:21]} {[%emt 00:00:14]} 4. h3 {[%clk 01:29:17]} {[%emt 00:01:58]} c6
{[%clk 01:31:22]} {[%emt 00:00:29]} 5. g3 {[%clk 01:25:52]} {[%emt 00:03:55]}
Bg7 {[%clk 01:29:28]} {[%emt 00:02:24]} 6. Bg2 {[%clk 01:26:06]} {[%emt
00:00:16]} Nbd7 {[%clk 01:29:38]} {[%emt 00:00:20]} 7. a4 {[%clk 01:24:02]}
{[%emt 00:02:35]} O-O {[%clk 01:28:58]} {[%emt 00:01:09]} 8. Nge2 {[%clk
01:24:00]} {[%emt 00:00:31]} e5 {[%clk 01:28:09]} {[%emt 00:01:20]} 9. Be3
{[%clk 01:22:50]} {[%emt 00:01:40]} Re8 {[%clk 01:28:18]} {[%emt 00:00:21]} 10.
O-O {[%clk 01:22:46]} {[%emt 00:00:34]} a5 {[%clk 01:22:11]} {[%emt 00:06:38]}
11. g4 {[%clk 01:20:38]} {[%emt 00:02:38]} exd4 {[%clk 01:12:43]} {[%emt
00:09:57]} 12. Bxd4 {[%clk 01:20:49]} {[%emt 00:00:19]} Qe7 {[%clk 01:01:59]}
{[%emt 00:11:14]} 13. Ng3 {[%clk 01:20:05]} {[%emt 00:01:13]} Nc5 {[%clk
00:58:43]} {[%emt 00:03:47]} 14. Qd2 {[%emt 00:06:47]} Be6 {[%clk 00:41:35]}
{[%emt 00:17:22]} 15. f4 {[%clk 01:12:02]} {[%emt 00:02:32]} Bc4 {[%clk
00:40:28]} {[%emt 00:01:37]} 16. g5 {[%clk 01:06:58]} {[%emt 00:05:34]} Nfd7
{[%clk 00:28:06]} {[%emt 00:12:52]} 17. Bxg7 {[%clk 01:06:37]} {[%emt
00:00:51]} Bxf1 {[%clk 00:28:29]} {[%emt 00:00:07]} 18. Bf6 {[%clk 01:07:00]}
{[%emt 00:00:07]} Nxf6 {[%clk 00:28:54]} {[%emt 00:00:06]} 19. gxf6 {[%clk
01:07:25]} {[%emt 00:00:05]} Qxf6 {[%clk 00:29:20]} {[%emt 00:00:04]} 20. Rxf1
{[%clk 01:07:39]} {[%emt 00:00:15]} Qh4 {[%clk 00:24:49]} {[%emt 00:05:01]} 21.
Qf2 {[%clk 01:05:59]} {[%emt 00:02:10]} Rad8 {[%clk 00:17:02]} {[%emt
00:08:17]} 22. Kh2 {[%clk 01:05:36]} {[%emt 00:00:53]} Nd7 {[%clk 00:16:35]}
{[%emt 00:00:58]} 23. Qd4 {[%clk 01:04:43]} {[%emt 00:01:22]} Nf6 {[%clk
00:15:15]} {[%emt 00:01:50]} 24. Bf3 {[%clk 01:04:17]} {[%emt 00:00:56]} Re6
{[%clk 00:12:17]} {[%emt 00:03:28]} 25. Qd2 {[%clk 01:02:54]} {[%emt 00:01:53]}
Ree8 {[%clk 00:10:41]} {[%emt 00:02:06]} 26. Rg1 {[%clk 01:02:42]} {[%emt
00:00:42]} Kh8 {[%clk 00:10:35]} {[%emt 00:00:36]} 27. Nce2 {[%clk 00:58:53]}
{[%emt 00:04:19]} d5 {[%clk 00:08:56]} {[%emt 00:02:09]} 28. e5 {[%clk
00:59:14]} {[%emt 00:00:10]} Ne4 {[%clk 00:09:14]} {[%emt 00:00:12]} 29. Bxe4
{[%clk 00:58:49]} {[%emt 00:00:54]} dxe4 {[%clk 00:09:41]} {[%emt 00:00:03]} 30.
Qc3 {[%clk 00:58:21]} {[%emt 00:00:58]} e3 {[%clk 00:03:37]} {[%emt 00:06:34]}
31. Ne4 {[%clk 00:57:06]} {[%emt 00:01:45]} Re6 {[%clk 00:03:24]} {[%emt
00:00:43]} 32. Ng5 {[%clk 00:56:40]} {[%emt 00:00:56]} Rd2 {[%clk 00:02:14]}
{[%emt 00:01:40]} 33. Qxe3 {[%clk 00:55:54]} {[%emt 00:01:16]} Rxe2+ {[%clk
00:02:21]} {[%emt 00:00:24]} 34. Qxe2 {[%clk 00:56:20]} {[%emt 00:00:04]} Qxf4+
{[%clk 00:02:45]} {[%emt 00:00:05]} 35. Rg3 {[%clk 00:56:14]} {[%emt 00:00:36]}
Re7 {[%clk 00:02:39]} {[%emt 00:00:36]} 36. Qf3 {[%clk 00:55:23]} {[%emt
00:01:20]} Qd4 {[%clk 00:00:54]} {[%emt 00:02:16]} 1-0

[Event "Polofinale MCR junioru 2023"]
[Site "Czech Republic"]
[Date "2023.11.14"]
[Round "5.6"]
[White "Vilimek, Vit"]
[Black "Bohacek, Jan Andrej"]
[Result "0-1"]
[TimeControl "90 min per 40 moves + 15 min + 30 sec / move from move 1"]
[WhiteFideId "23718218"]
[BlackFideId "23727357"]
[WhiteElo "2163"]
[BlackElo "2066"]

1. e4 {[%clk 01:30:38]} {[%emt 00:00:22]} c6 {[%clk 01:30:54]} {[%emt
00:00:06]} 2. d4 {[%clk 01:31:05]} {[%emt 00:00:04]} d5 {[%clk 01:31:19]}
{[%emt 00:00:04]} 3. e5 {[%clk 01:31:31]} {[%emt 00:00:04]} c5 {[%clk
01:31:45]} {[%emt 00:00:04]} 4. dxc5 {[%clk 01:31:50]} {[%emt 00:00:11]} e6
{[%clk 01:32:09]} {[%emt 00:00:06]} 5. a3 {[%clk 01:32:08]} {[%emt 00:00:13]}
Bxc5 {[%clk 01:32:32]} {[%emt 00:00:06]} 6. b4 {[%clk 01:32:22]} {[%emt
00:00:16]} Be7 {[%clk 01:32:56]} {[%emt 00:00:05]} 7. Nf3 {[%clk 01:32:42]}
{[%emt 00:00:11]} f6 {[%clk 01:33:05]} {[%emt 00:00:21]} 8. Bb2 {[%clk
01:32:36]} {[%emt 00:00:36]} a5 {[%clk 01:33:21]} {[%emt 00:00:15]} 9. b5
{[%clk 01:32:55]} {[%emt 00:00:10]} Nd7 {[%clk 01:33:44]} {[%emt 00:00:08]} 10.
c4 {[%clk 01:33:03]} {[%emt 00:00:21]} Nxe5 {[%clk 01:34:06]} {[%emt 00:00:08]}
11. Nxe5 {[%clk 01:33:28]} {[%emt 00:00:05]} fxe5 {[%clk 01:34:28]} {[%emt
00:00:08]} 12. Bxe5 {[%clk 01:33:54]} {[%emt 00:00:04]} Nf6 {[%clk 01:34:04]}
{[%emt 00:00:54]} 13. Nd2 {[%clk 01:30:43]} {[%emt 00:03:42]} O-O {[%clk
01:32:20]} {[%emt 00:02:14]} 14. Be2 {[%clk 01:30:01]} {[%emt 00:01:12]} Nd7
{[%clk 01:27:39]} {[%emt 00:05:11]} 15. Bb2 {[%clk 01:25:04]} {[%emt 00:05:26]}
Nc5 {[%clk 01:19:09]} {[%emt 00:09:00]} 16. Nf3 {[%clk 01:18:11]} {[%emt
00:07:23]} a4 {[%clk 01:02:32]} {[%emt 00:17:07]} 17. O-O {[%clk 01:09:46]}
{[%emt 00:08:55]} Nb3 {[%clk 00:58:37]} {[%emt 00:04:25]} 18. Rb1 {[%clk
01:10:01]} {[%emt 00:00:14]} Bc5 {[%clk 00:56:36]} {[%emt 00:02:31]} 19. Nd4
{[%clk 00:56:50]} {[%emt 00:13:42]} Nxd4 {[%clk 00:29:52]} {[%emt 00:27:14]} 20.
Bxd4 {[%clk 00:57:06]} {[%emt 00:00:15]} Bxa3 {[%clk 00:29:34]} {[%emt
00:00:48]} 21. Qc2 {[%clk 00:41:22]} {[%emt 00:16:13]} Bd6 {[%clk 00:26:43]}
{[%emt 00:03:21]} 22. Qc3 {[%clk 00:35:27]} {[%emt 00:06:25]} Qg5 {[%clk
00:11:50]} {[%emt 00:15:23]} 23. c5 {[%clk 00:35:06]} {[%emt 00:00:52]} Bb8
{[%clk 00:11:23]} {[%emt 00:00:56]} 24. c6 {[%clk 00:22:31]} {[%emt 00:13:06]}
e5 {[%clk 00:10:57]} {[%emt 00:00:56]} 25. Be3 {[%clk 00:22:19]} {[%emt
00:00:42]} Qg6 {[%clk 00:09:15]} {[%emt 00:02:11]} 26. c7 {[%clk 00:12:42]}
{[%emt 00:10:08]} Bxc7 {[%clk 00:07:19]} {[%emt 00:02:26]} 27. Qxc7 {[%clk
00:13:08]} {[%emt 00:00:04]} Bh3 {[%clk 00:07:26]} {[%emt 00:00:22]} 28. g3
{[%clk 00:13:14]} {[%emt 00:00:24]} Qe4 {[%clk 00:07:24]} {[%emt 00:00:32]} 0-1

[Event "Polofinale MCR junioru 2023"]
[Site "Czech Republic"]
[Date "2023.11.14"]
[Round "5.8"]
[White "Pavlis, Matej"]
[Black "Fizer, Marek"]
[Result "1-0"]
[TimeControl "90 min per 40 moves + 15 min + 30 sec / move from move 1"]
[WhiteFideId "23735767"]
[BlackFideId "391980"]
[WhiteElo "1974"]
[BlackElo "2162"]

1. d4 {[%clk 01:30:58]} {[%emt 00:00:02]} d5 {[%clk 01:30:53]} {[%emt
00:00:06]} 2. Nf3 {[%clk 01:31:22]} {[%emt 00:00:07]} e6 {[%clk 01:31:16]}
{[%emt 00:00:06]} 3. c4 {[%clk 01:31:46]} {[%emt 00:00:07]} Nf6 {[%clk
01:31:39]} {[%emt 00:00:07]} 4. g3 {[%clk 01:32:06]} {[%emt 00:00:10]} Be7
{[%clk 01:32:01]} {[%emt 00:00:07]} 5. Bg2 {[%clk 01:32:33]} {[%emt 00:00:04]}
O-O {[%clk 01:32:19]} {[%emt 00:00:11]} 6. O-O {[%clk 01:32:59]} {[%emt
00:00:05]} dxc4 {[%clk 01:32:40]} {[%emt 00:00:09]} 7. Qc2 {[%clk 01:33:24]}
{[%emt 00:00:04]} b5 {[%clk 01:32:59]} {[%emt 00:00:11]} 8. a4 {[%clk
01:33:49]} {[%emt 00:00:06]} Bb7 {[%clk 01:33:23]} {[%emt 00:00:06]} 9. axb5
{[%clk 01:34:11]} {[%emt 00:00:08]} a6 {[%clk 01:33:25]} {[%emt 00:00:27]} 10.
bxa6 {[%clk 01:32:54]} {[%emt 00:01:48]} Nxa6 {[%clk 01:33:42]} {[%emt
00:00:13]} 11. Qxc4 {[%clk 01:33:13]} {[%emt 00:00:10]} Bd5 {[%clk 01:33:51]}
{[%emt 00:00:21]} 12. Qd3 {[%clk 01:25:31]} {[%emt 00:08:12]} Nb4 {[%clk
01:34:01]} {[%emt 00:00:20]} 13. Rxa8 {[%clk 01:25:46]} {[%emt 00:00:16]} Qxa8
{[%clk 01:34:24]} {[%emt 00:00:06]} 14. Qe3 {[%clk 01:12:20]} {[%emt 00:13:54]}
h6 {[%clk 01:29:09]} {[%emt 00:05:48]} 15. Nc3 {[%clk 01:11:34]} {[%emt
00:01:16]} Bc6 {[%clk 01:25:01]} {[%emt 00:04:37]} 16. Ne1 {[%clk 01:07:40]}
{[%emt 00:04:24]} Bxg2 {[%clk 01:08:11]} {[%emt 00:17:20]} 17. Nxg2 {[%clk
01:08:04]} {[%emt 00:00:06]} Rd8 {[%clk 01:08:29]} {[%emt 00:00:12]} 18. Rd1
{[%clk 01:06:13]} {[%emt 00:02:22]} Qa7 {[%clk 01:05:58]} {[%emt 00:03:00]} 19.
Ne1 {[%clk 00:58:30]} {[%emt 00:08:13]} Nfd5 {[%clk 00:55:13]} {[%emt
00:11:15]} 20. Qf3 {[%clk 00:53:11]} {[%emt 00:05:48]} c5 {[%clk 00:41:43]}
{[%emt 00:14:01]} 21. dxc5 {[%clk 00:46:57]} {[%emt 00:06:45]} Qxc5 {[%clk
00:41:25]} {[%emt 00:00:47]} 22. Nd3 {[%clk 00:39:44]} {[%emt 00:07:43]} Qa5
{[%clk 00:21:22]} {[%emt 00:20:33]} 23. Nxb4 {[%clk 00:34:37]} {[%emt
00:05:38]} Nxb4 {[%clk 00:20:11]} {[%emt 00:01:40]} 24. Rxd8+ {[%clk 00:35:06]}
{[%emt 00:00:02]} Bxd8 {[%clk 00:18:16]} {[%emt 00:02:25]} 25. Kg2 {[%clk
00:35:00]} {[%emt 00:00:35]} Qa1 {[%clk 00:12:27]} {[%emt 00:06:19]} 26. Qf4
{[%clk 00:34:35]} {[%emt 00:00:54]} Bg5 {[%clk 00:10:49]} {[%emt 00:02:09]} 27.
Qb8+ {[%clk 00:34:53]} {[%emt 00:00:12]} Kh7 {[%clk 00:10:56]} {[%emt
00:00:23]} 28. Bxg5 {[%clk 00:35:10]} {[%emt 00:00:14]} Na6 {[%clk 00:10:33]}
{[%emt 00:00:52]} 29. Qb7 {[%clk 00:32:00]} {[%emt 00:03:41]} hxg5 {[%clk
00:10:29]} {[%emt 00:00:34]} 30. Qxf7 {[%clk 00:32:08]} {[%emt 00:00:22]} Qxb2
{[%clk 00:10:13]} {[%emt 00:00:46]} 31. Qh5+ {[%clk 00:32:25]} {[%emt
00:00:13]} Kg8 {[%clk 00:10:25]} {[%emt 00:00:18]} 32. Qe8+ {[%clk 00:32:51]}
{[%emt 00:00:04]} Kh7 {[%clk 00:10:47]} {[%emt 00:00:07]} 33. Qxe6 {[%clk
00:33:08]} {[%emt 00:00:13]} Qxc3 {[%clk 00:11:06]} {[%emt 00:00:12]} 34. Qxa6
{[%clk 00:33:31]} {[%emt 00:00:07]} Qe5 {[%clk 00:10:46]} {[%emt 00:00:49]} 35.
Qd3+ {[%clk 00:33:26]} {[%emt 00:00:35]} Kh6 {[%clk 00:09:53]} {[%emt
00:01:23]} 36. h3 {[%clk 00:33:34]} {[%emt 00:00:22]} Qe6 {[%clk 00:07:09]}
{[%emt 00:03:14]} 37. e4 {[%clk 00:32:32]} {[%emt 00:01:32]} Kg6 {[%clk
00:05:15]} {[%emt 00:02:24]} 38. e5+ {[%clk 00:31:39]} {[%emt 00:01:23]} Kf7
{[%clk 00:05:23]} {[%emt 00:00:22]} 39. Qe4 {[%clk 00:31:39]} {[%emt 00:00:30]}
Qd7 {[%clk 00:03:24]} {[%emt 00:02:29]} 40. g4 {[%clk 00:30:48]} {[%emt
00:01:21]} g6 {[%clk 00:03:40]} {[%emt 00:00:14]} 41. Qf3+ {[%clk 00:29:48]}
{[%emt 00:01:30]} Ke8 {[%clk 00:02:38]} {[%emt 00:01:32]} 42. Qf6 {[%clk
00:30:10]} {[%emt 00:00:08]} Qd5+ {[%clk 00:02:35]} {[%emt 00:00:33]} 43. Kh2
{[%clk 00:30:30]} {[%emt 00:00:10]} Qf7 {[%clk 00:01:03]} {[%emt 00:02:03]} 44.
Qxf7+ {[%clk 00:30:25]} {[%emt 00:00:35]} Kxf7 {[%clk 00:01:26]} {[%emt
00:00:07]} 45. Kg3 {[%clk 00:30:47]} {[%emt 00:00:07]} Ke6 {[%clk 00:01:43]}
{[%emt 00:00:13]} 46. f4 {[%clk 00:31:13]} {[%emt 00:00:04]} Kd5 {[%emt
00:00:13]} 1-0

[Event "Polofinale MCR junioru 2023"]
[Site "Czech Republic"]
[Date "2023.11.14"]
[Round "5.9"]
[White "Jasso, Matej"]
[Black "Ocelak, Jakub"]
[Result "1/2-1/2"]
[TimeControl "90 min per 40 moves + 15 min + 30 sec / move from move 1"]
[WhiteFideId "23710748"]
[BlackFideId "23707933"]
[WhiteElo "2033"]
[BlackElo "2238"]

1. e4 {[%clk 01:30:52]} {[%emt 00:00:07]} e5 {[%clk 01:30:58]} {[%emt
00:00:03]} 2. Nf3 {[%clk 01:30:58]} {[%emt 00:00:24]} Nc6 {[%clk 01:31:26]}
{[%emt 00:00:03]} 3. Bb5 {[%clk 01:31:21]} {[%emt 00:00:06]} a6 {[%clk
01:31:53]} {[%emt 00:00:03]} 4. Ba4 {[%clk 01:31:46]} {[%emt 00:00:05]} Nf6
{[%clk 01:32:19]} {[%emt 00:00:04]} 5. d3 {[%clk 01:32:11]} {[%emt 00:00:05]}
d6 {[%clk 01:32:46]} {[%emt 00:00:03]} 6. c3 {[%clk 01:32:36]} {[%emt
00:00:05]} g6 {[%clk 01:33:13]} {[%emt 00:00:03]} 7. O-O {[%clk 01:32:58]}
{[%emt 00:00:08]} Bg7 {[%clk 01:33:36]} {[%emt 00:00:07]} 8. Nbd2 {[%clk
01:33:24]} {[%emt 00:00:04]} O-O {[%clk 01:33:32]} {[%emt 00:00:33]} 9. Re1
{[%clk 01:33:52]} {[%emt 00:00:03]} Kh8 {[%clk 01:31:56]} {[%emt 00:02:06]} 10.
Nf1 {[%clk 01:32:44]} {[%emt 00:01:38]} Nd7 {[%clk 01:23:32]} {[%emt 00:08:55]}
11. h3 {[%clk 01:32:24]} {[%emt 00:00:50]} f5 {[%clk 01:18:30]} {[%emt
00:05:31]} 12. Bg5 {[%clk 01:21:42]} {[%emt 00:11:11]} Bf6 {[%clk 01:17:21]}
{[%emt 00:01:40]} 13. Bh6 {[%clk 01:20:37]} {[%emt 00:01:35]} Re8 {[%clk
01:10:01]} {[%emt 00:07:50]} 14. Ne3 {[%clk 01:02:16]} {[%emt 00:18:51]} Nb6
{[%clk 00:49:14]} {[%emt 00:21:17]} 15. Bb3 {[%clk 00:55:04]} {[%emt 00:07:42]}
Qe7 {[%clk 00:41:59]} {[%emt 00:07:45]} 16. exf5 {[%clk 00:48:10]} {[%emt
00:07:24]} gxf5 {[%clk 00:41:45]} {[%emt 00:00:44]} 17. d4 {[%clk 00:48:36]}
{[%emt 00:00:05]} Bd7 {[%clk 00:33:25]} {[%emt 00:08:49]} 18. Qc2 {[%clk
00:34:50]} {[%emt 00:14:16]} e4 {[%clk 00:31:57]} {[%emt 00:01:57]} 19. d5
{[%clk 00:34:39]} {[%emt 00:00:42]} Ne5 {[%clk 00:22:16]} {[%emt 00:10:11]} 20.
Nd4 {[%clk 00:33:24]} {[%emt 00:01:45]} Nd3 {[%clk 00:22:28]} {[%emt 00:00:18]}
21. Nexf5 {[%clk 00:30:32]} {[%emt 00:03:22]} Nxe1 {[%clk 00:20:52]} {[%emt
00:02:05]} 22. Rxe1 {[%clk 00:30:51]} {[%emt 00:00:11]} Bxf5 {[%clk 00:15:58]}
{[%emt 00:05:25]} 23. Nxf5 {[%clk 00:31:09]} {[%emt 00:00:12]} Qf7 {[%clk
00:14:56]} {[%emt 00:01:32]} 24. Rxe4 {[%clk 00:30:35]} {[%emt 00:01:04]} Rxe4
{[%clk 00:15:17]} {[%emt 00:00:08]} 25. Qxe4 {[%clk 00:30:56]} {[%emt
00:00:09]} Re8 {[%clk 00:15:33]} {[%emt 00:00:15]} 26. Qf3 {[%clk 00:31:00]}
{[%emt 00:00:25]} Nd7 {[%clk 00:14:44]} {[%emt 00:01:19]} 27. Ne3 {[%clk
00:27:46]} {[%emt 00:03:44]} Qg6 {[%clk 00:13:14]} {[%emt 00:02:01]} 28. Bf4
{[%clk 00:27:35]} {[%emt 00:00:41]} Be5 {[%clk 00:10:38]} {[%emt 00:03:06]} 29.
Bc2 {[%clk 00:22:57]} {[%emt 00:05:08]} Qf7 {[%clk 00:09:20]} {[%emt 00:01:47]}
30. Bf5 {[%clk 00:21:20]} {[%emt 00:02:07]} Bxf4 {[%clk 00:09:39]} {[%emt
00:00:11]} 31. Qxf4 {[%clk 00:21:17]} {[%emt 00:00:33]} Ne5 {[%clk 00:08:54]}
{[%emt 00:01:16]} 32. Qh4 {[%clk 00:20:17]} {[%emt 00:01:30]} Ng6 {[%clk
00:06:34]} {[%emt 00:02:49]} 33. Qg4 {[%clk 00:18:23]} {[%emt 00:02:25]} Rf8
{[%clk 00:05:19]} {[%emt 00:01:45]} 34. Qg3 {[%clk 00:15:31]} {[%emt 00:03:22]}
Ne7 {[%clk 00:04:08]} {[%emt 00:01:41]} 35. Be6 {[%clk 00:15:33]} {[%emt
00:00:28]} Qf4 {[%clk 00:04:04]} {[%emt 00:00:32]} 36. Qxf4 {[%clk 00:15:41]}
{[%emt 00:00:25]} Rxf4 {[%clk 00:04:31]} {[%emt 00:00:02]} 37. g3 {[%clk
00:15:42]} {[%emt 00:00:29]} Rf8 {[%clk 00:04:52]} {[%emt 00:00:09]} 38. f4
{[%clk 00:15:18]} {[%emt 00:00:54]} Kg7 {[%clk 00:05:10]} {[%emt 00:00:11]} 39.
Kg2 {[%clk 00:15:19]} {[%emt 00:00:30]} h6 {[%clk 00:01:27]} {[%emt 00:04:13]}
40. f5 {[%clk 00:11:53]} {[%emt 00:03:56]} h5 {[%clk 00:00:58]} {[%emt
00:00:59]} 41. g4 {[%clk 00:11:07]} {[%emt 00:01:16]} hxg4 {[%clk 00:14:02]}
{[%emt 00:02:56]} 42. hxg4 {[%clk 00:24:51]} {[%emt 00:02:47]} Kf6 {[%clk
00:12:47]} {[%emt 00:01:44]} 43. Kg3 {[%clk 00:24:39]} {[%emt 00:00:41]} Ke5
{[%clk 00:09:52]} {[%emt 00:03:26]} 44. Kf3 {[%clk 00:18:29]} {[%emt 00:06:40]}
b5 {[%clk 00:10:02]} {[%emt 00:00:20]} 45. b3 {[%clk 00:09:27]} {[%emt
00:09:33]} Rh8 {[%clk 00:08:39]} {[%emt 00:01:52]} 46. Nf1 {[%clk 00:01:49]}
{[%emt 00:08:09]} Rh1 {[%clk 00:05:17]} {[%emt 00:03:52]} 47. Ng3 {[%clk
00:01:48]} {[%emt 00:00:31]} Rc1 {[%clk 00:05:40]} {[%emt 00:00:07]} 48. Ne2
{[%emt 00:06:09]} 1/2-1/2

[Event "Polofinale MCR junioru 2023"]
[Site "Czech Republic"]
[Date "2023.11.14"]
[Round "5.10"]
[White "Soucek, Petr"]
[Black "Simunek, Jakub Simon"]
[Result "1-0"]
[TimeControl "90 min per 40 moves + 15 min + 30 sec / move from move 1"]
[WhiteFideId "23715170"]
[BlackFideId "23709464"]
[WhiteElo "2227"]
[BlackElo "1970"]

1. e4 {[%clk 01:25:53]} {[%emt 00:05:05]} e6 {[%clk 01:30:53]} {[%emt
00:00:08]} 2. d4 {[%clk 01:26:19]} {[%emt 00:00:04]} d5 {[%clk 01:31:20]}
{[%emt 00:00:03]} 3. Nc3 {[%clk 01:26:45]} {[%emt 00:00:04]} Bb4 {[%clk
01:31:42]} {[%emt 00:00:07]} 4. e5 {[%clk 01:27:11]} {[%emt 00:00:04]} c5
{[%clk 01:32:07]} {[%emt 00:00:06]} 5. a3 {[%clk 01:27:37]} {[%emt 00:00:04]}
Bxc3+ {[%clk 01:32:33]} {[%emt 00:00:03]} 6. bxc3 {[%clk 01:28:04]} {[%emt
00:00:04]} Ne7 {[%clk 01:32:58]} {[%emt 00:00:04]} 7. Qg4 {[%clk 01:28:24]}
{[%emt 00:00:10]} Qc7 {[%clk 01:33:06]} {[%emt 00:00:22]} 8. Qxg7 {[%clk
01:28:40]} {[%emt 00:00:14]} Rg8 {[%clk 01:33:33]} {[%emt 00:00:04]} 9. Qxh7
{[%clk 01:29:05]} {[%emt 00:00:05]} cxd4 {[%clk 01:33:30]} {[%emt 00:00:33]} 10.
Ne2 {[%clk 01:29:05]} {[%emt 00:00:30]} dxc3 {[%clk 01:32:40]} {[%emt
00:01:20]} 11. f4 {[%clk 01:28:15]} {[%emt 00:01:20]} Nbc6 {[%clk 01:32:58]}
{[%emt 00:00:12]} 12. Qd3 {[%clk 01:28:20]} {[%emt 00:00:24]} d4 {[%clk
01:31:24]} {[%emt 00:02:05]} 13. Nxd4 {[%clk 01:28:37]} {[%emt 00:00:12]} Nxd4
{[%clk 01:31:46]} {[%emt 00:00:08]} 14. Qxd4 {[%clk 01:29:04]} {[%emt
00:00:03]} Bd7 {[%clk 01:31:59]} {[%emt 00:00:17]} 15. Rg1 {[%clk 01:28:58]}
{[%emt 00:00:36]} Nf5 {[%clk 01:31:19]} {[%emt 00:01:10]} 16. Qf2 {[%clk
01:29:23]} {[%emt 00:00:05]} Qc6 {[%clk 01:29:50]} {[%emt 00:02:00]} 17. Bd3
{[%clk 01:29:48]} {[%emt 00:00:05]} Qd5 {[%clk 01:28:54]} {[%emt 00:01:26]} 18.
Be3 {[%clk 01:29:55]} {[%emt 00:00:22]} Nxe3 {[%clk 01:00:05]} {[%emt
00:29:19]} 19. Qxe3 {[%clk 01:30:21]} {[%emt 00:00:04]} Rxg2 {[%clk 01:00:31]}
{[%emt 00:00:05]} 20. Rxg2 {[%clk 01:30:46]} {[%emt 00:00:05]} Qxg2 {[%clk
01:00:53]} {[%emt 00:00:07]} 21. Be4 {[%clk 01:31:08]} {[%emt 00:00:09]} Qd2+
{[%clk 01:00:24]} {[%emt 00:00:58]} 22. Qxd2 {[%clk 01:31:30]} {[%emt
00:00:08]} cxd2+ {[%clk 01:00:50]} {[%emt 00:00:04]} 23. Kxd2 {[%clk 01:31:52]}
{[%emt 00:00:08]} O-O-O {[%clk 01:00:46]} {[%emt 00:00:34]} 24. Rh1 {[%clk
01:22:34]} {[%emt 00:09:49]} Bc6+ {[%clk 00:48:58]} {[%emt 00:12:18]} 25. Ke3
{[%clk 01:22:56]} {[%emt 00:00:08]} Bxe4 {[%clk 00:49:16]} {[%emt 00:00:12]} 26.
Kxe4 {[%clk 01:23:22]} {[%emt 00:00:04]} Rd2 {[%clk 00:49:40]} {[%emt
00:00:06]} 27. h4 {[%clk 01:21:25]} {[%emt 00:02:27]} Kd7 {[%clk 00:49:49]}
{[%emt 00:00:20]} 28. h5 {[%clk 01:21:38]} {[%emt 00:00:17]} Rxc2 {[%clk
00:50:13]} {[%emt 00:00:05]} 29. h6 {[%clk 01:21:47]} {[%emt 00:00:23]} Rc4+
{[%clk 00:50:38]} {[%emt 00:00:05]} 30. Kf3 {[%clk 01:21:08]} {[%emt 00:01:09]}
Rc8 {[%clk 00:50:59]} {[%emt 00:00:09]} 31. h7 {[%clk 01:21:18]} {[%emt
00:00:19]} Rh8 {[%clk 00:51:16]} {[%emt 00:00:13]} 32. Kg4 {[%clk 01:21:33]}
{[%emt 00:00:15]} Ke7 {[%clk 00:51:21]} {[%emt 00:00:26]} 33. Kg5 {[%clk
01:21:57]} {[%emt 00:00:05]} f6+ {[%clk 00:50:58]} {[%emt 00:00:54]} 34. Kg6
{[%clk 01:22:10]} {[%emt 00:00:17]} 1-0